{"text_format":"1","workbook":"xlsx","n_sheets":2,"sheets":["Instructions","Sheet1"],"not_rendered":{"charts":0,"images":0,"macros":1,"external_links":0,"defined_names":1,"comments":0,"pivot_tables":0},"unopened":[],"bounds":{"document_bytes":16777216,"sheet_cells":100000,"rows_first":2000,"rows_last":500,"rows_between":2000,"halvings":0,"cell_chars":16384,"cell_head_chars":4096},"cells_cut":0,"cells_raw":0,"read":"whole","date_system":"1900"}

{"sheet":"Instructions","index":0,"n_rows":4,"n_cols":2,"rows_kept":4,"cut":false,"hidden":false,"merged":[]}
[]
[]
[]
[null,"Go to View | Macros and run macros STEP1 and STEP2"]

{"sheet":"Sheet1","index":1,"n_rows":43,"n_cols":6,"rows_kept":43,"cut":false,"hidden":false,"merged":[]}
["ID","BOOK/WRIT","Address",{"$f":"COUNTA(F:F)","v":5}]
[1,"1206-376A","5420-28 Paschall Ave","http://www.phila.gov/data/Pages/default.aspx?entity=locationhistory&eid=472092",472092,"NONE"]
[2,"1206-376B","5430-44 Paschall Ave","http://www.phila.gov/data/Pages/default.aspx?entity=locationhistory&eid=472093",472093,"2017 PERMB- FILL EXT DR/WIN OPENIN | 2017 PERMB- ALTER REP'R EXT PORTION | 2017 SWO- CONSTR W/O BLDG PERMIT | "]
[3,"502-588A","5403 Chester Ave","http://www.phila.gov/data/Pages/default.aspx?entity=locationhistory&eid=80097",80097,"NONE"]
[4,"502-588B","5405 Chester Ave","http://www.phila.gov/data/Pages/default.aspx?entity=locationhistory&eid=80098",80098,"NONE"]
[{"$f":"A5+1","v":5},null,"4902 Woodcrest Ave","http://www.phila.gov/data/Pages/default.aspx?entity=locationhistory&eid=472092",472092,"NONE"]
[{"$f":"A6+1","v":6},null,"750 W Cheltenham Ave","http://www.phila.gov/data/Pages/default.aspx?entity=locationhistory&eid=472093",472093]
[7,null,"507 Burgess St","http://www.phila.gov/data/Pages/default.aspx?entity=locationhistory&eid=80097",80097]
[8,null,"6764 Marsden St","http://www.phila.gov/data/Pages/default.aspx?entity=locationhistory&eid=472092",472092]
[9,null,"1915 S Norwood St","http://www.phila.gov/data/Pages/default.aspx?entity=locationhistory&eid=472093",472093]
[10,null,"3973 Lankenau Ave","http://www.phila.gov/data/Pages/default.aspx?entity=locationhistory&eid=80097",80097]
[11,null,"1204 Unruh Ave","http://www.phila.gov/data/Pages/default.aspx?entity=locationhistory&eid=80098",80098]
[12,null,"540 E Walnut Ln","http://www.phila.gov/data/Pages/default.aspx?entity=locationhistory&eid=472092",472092]
[13,null,"1213 N 25Th St","http://www.phila.gov/data/Pages/default.aspx?entity=locationhistory&eid=472093",472093]
[14,null,"144 Covington Rd","http://www.phila.gov/data/Pages/default.aspx?entity=locationhistory&eid=80097",80097]
[15,null,"7808 Buist Ave","http://www.phila.gov/data/Pages/default.aspx?entity=locationhistory&eid=80098",80098]
[16,null,"7025 W Passyunk Ave","http://www.phila.gov/data/Pages/default.aspx?entity=locationhistory&eid=472092",472092]
[17,null,"4551 N Smedley St","http://www.phila.gov/data/Pages/default.aspx?entity=locationhistory&eid=472093",472093]
[18,null,"6132 Tulip St","http://www.phila.gov/data/Pages/default.aspx?entity=locationhistory&eid=80097",80097]
[19,null,"13035 Blakeslee Ct Unit #B","http://www.phila.gov/data/Pages/default.aspx?entity=locationhistory&eid=80098",80098]
[20,null,"2739 Germantown Ave"]
[21,null,"2651 S 11Th St"]
[22,null,"824 Loney St"]
[23,null,"1031 Christian St"]
[24,null,"1550 E Tulpehocken St"]
[25,null,"1531 N 62Nd St"]
[26,null,"3165 Gaul St"]
[27,null,"11997 Dumont Rd"]
[28,null,"5239 Pennsgrove St"]
[29,null,"3336 Jasper St"]
[30,null,"819 Earp St"]
[31,null,"212-24 S 24Th St Unit #218"]
[32,null,"2060 E Stella St"]
[33,null,"413 Tyson Ave"]
[34,null,"4654 Hazel Ave"]
[35,null,"4726 Chestnut St"]
[36,null,"1248 S 15Th St"]
[37,null,"315 S Camac St"]
[38,null,"2052 W Stella St"]
[39,null,"6031 Morton St"]
[40,null,"642 Robbins St"]
[41,null,"7952 Langdon St"]
[42,null,"1448 Mckinley St"]